bitfinex/quotes_BTCUSD_20260117
["timestamp","ask_amount","ask_price","bid_price","bid_amount"]
[1768663703475,0.12676178,95495.0,95487.0,0.01047262]
[1768663703676,0.11629003,95495.0,95492.0,0.01047208]
[1768663704085,0.01047032,95508.0,95497.0,1.01987093]
[1768663704364,0.00061992,95507.0,95498.0,0.01047142]
[1768663704618,0.00061992,95507.0,95504.0,0.01047076]
[1768663705004,0.00061992,95507.0,95505.0,0.0523531]
[1768663705202,0.01047065,95505.0,95499.0,0.01047131]
[1768663705407,1.01702001,95507.0,95501.0,0.01047109]
[1768663705607,0.01047065,95505.0,95501.0,0.01047109]
[1768663705832,1.02749044,95507.0,95501.0,0.01047109]
[1768663706040,0.01047054,95506.0,95502.0,0.01047098]
[1768663706245,1.02749044,95507.0,95488.0,0.01047252]
[1768663706246,1.01640009,95499.0,95488.0,0.01047252]
[1768663706450,0.0106049,95499.0,95491.0,0.01047219]
[1768663706663,0.0106049,95499.0,95493.0,0.01047197]
[1768663706664,0.00013359,95499.0,95493.0,0.01047197]
[1768663706868,0.01042623,95498.0,95494.0,0.01047186]
[1768663707068,0.12692,95497.0,95494.0,0.01047186]
[1768663707446,0.12692,95497.0,95493.0,0.01047197]
[1768663707657,0.01047164,95496.0,95488.0,0.01047252]
[1768663708557,0.01047153,95497.0,95491.0,0.01047219]
[1768663708779,0.01047175,95495.0,95491.0,0.01047219]
[1768663709939,0.13739142,95498.0,95494.0,0.01047186]
[1768663710152,0.12692,95498.0,95495.0,0.01047175]
[1768663711269,0.00013359,95499.0,95496.0,0.01047164]
[1768663712019,0.00013359,95499.0,95493.0,0.01047197]
[1768663712296,0.01047142,95498.0,95495.0,0.01047175]
[1768663712523,0.0106049,95499.0,95495.0,0.01047175]
[1768663712936,0.00013359,95499.0,95496.0,0.01047164]
[1768663713386,0.0106049,95499.0,95496.0,0.01047164]
[1768663713719,0.00013359,95499.0,95496.0,0.01047164]
[1768663714124,0.00013359,95499.0,95495.0,0.01047175]
[1768663714327,0.00013359,95499.0,95496.0,0.01047164]
[1768663714535,1.01820249,95499.0,95488.0,0.05236229]
[1768663714734,1.01820249,95499.0,95496.0,0.01047164]
[1768663715091,1.01820249,95499.0,95498.0,0.05235711]
[1768663715885,0.12688,95501.0,95499.0,0.01047131]
[1768663716080,0.12688,95501.0,95500.0,0.05235602]
[1768663716282,0.01047065,95505.0,95501.0,0.01047109]
[1768663716482,0.12688,95504.0,95501.0,0.01047109]
[1768663716778,0.12688,95504.0,95499.0,0.06282787]
[1768663716779,0.13735076,95504.0,95500.0,0.0104712]
[1768663717207,0.01047087,95503.0,95499.0,0.01047131]
[1768663717581,0.01047065,95505.0,95500.0,0.0104712]
[1768663717785,0.12688,95504.0,95500.0,0.0104712]
[1768663718629,0.00061992,95507.0,95504.0,0.01047076]
[1768663718852,0.01047076,95504.0,95500.0,0.0104712]
[1768663719428,0.01047076,95504.0,95488.0,1.11265433]
[1768663719429,0.05235766,95497.0,95490.0,0.06283369]
[1768663719627,0.01047175,95495.0,95490.0,0.0104723]
[1768663720181,0.01047186,95494.0,95490.0,0.0104723]
[1768663720329,0.0104723,95490.0,95486.0,0.01047273]
[1768663720508,0.01061394,95490.0,95486.0,0.01047273]
[1768663720709,0.01061394,95490.0,95485.0,0.01047284]
[1768663721118,0.01047241,95489.0,95484.0,0.01047295]
[1768663721592,0.01047252,95488.0,95484.0,0.01047295]
[1768663721913,0.01047252,95488.0,95480.0,0.06284026]
[1768663721914,0.01047262,95487.0,95481.0,0.01047328]
[1768663722111,0.01047241,95489.0,95475.0,0.05236927]
[1768663722112,0.01047317,95482.0,95475.0,0.05236927]
[1768663722373,0.01047306,95483.0,95477.0,0.01047372]
[1768663722583,0.12688,95489.0,95473.0,0.01059186]
[1768663722584,0.0737264,95478.0,95473.0,0.01047416]
[1768663722804,0.07298913,95476.0,95473.0,0.00899217]
[1768663723006,0.06284301,95476.0,95471.0,0.01047438]
[1768663723138,0.08273317,95475.0,95471.0,0.01047438]
[1768663723941,0.08273317,95475.0,95469.0,0.0104746]
[1768663724156,0.0827335,95472.0,95468.0,0.01047471]
[1768663725291,0.0827335,95472.0,95466.0,0.05237458]
[1768663725292,0.01047427,95472.0,95466.0,0.01047493]
[1768663725487,0.1740947,95474.0,95470.0,0.01047449]
[1768663725919,0.01047416,95473.0,95468.0,0.01047471]
[1768663726116,0.16362065,95477.0,95473.0,0.01047416]
[1768663726332,0.17409437,95477.0,95472.0,0.01047427]
[1768663726535,0.17409437,95477.0,95472.0,0.06284555]
[1768663726734,0.01047383,95476.0,95472.0,0.01047427]
[1768663727117,0.01047394,95475.0,95471.0,0.01047438]
[1768663727682,0.01047427,95472.0,95468.0,0.01047471]
[1768663727888,0.06284572,95472.0,95467.0,0.01047482]
[1768663728169,0.01047405,95474.0,95467.0,0.01047482]
[1768663728546,0.01047438,95471.0,95467.0,0.01047482]
[1768663728863,0.01047427,95472.0,95468.0,0.01047471]
[1768663729072,0.01047449,95470.0,95467.0,0.01047482]
[1768663729273,0.01047449,95470.0,95466.0,0.01047493]
[1768663729619,0.0104746,95469.0,95465.0,0.01047504]
[1768663730092,0.01047482,95467.0,95464.0,0.01047515]
[1768663730272,0.01047482,95467.0,95462.0,0.0001775]
[1768663730487,0.01047493,95466.0,95462.0,0.01065287]
[1768663731768,0.01047493,95466.0,95460.0,0.05237779]
[1768663731769,0.01047493,95466.0,95460.0,0.01047559]
[1768663731951,0.01047482,95467.0,95460.0,0.01047559]
[1768663732101,0.05237466,95466.0,95460.0,0.01047559]
[1768663732746,0.01047482,95467.0,95460.0,0.0628535]
[1768663732975,0.05237468,95466.0,95460.0,0.01047559]
[1768663733148,0.05237468,95466.0,95460.0,0.06285349]
[1768663733349,0.01047504,95465.0,95461.0,0.01047548]
[1768663734174,0.01047493,95466.0,95461.0,0.01047548]
[1768663734380,0.01047493,95466.0,95463.0,0.01047526]
[1768663735202,0.01047493,95466.0,95461.0,0.01047548]
[1768663735436,0.01047504,95465.0,95461.0,0.01047548]
[1768663735618,0.18977053,95465.0,95460.0,0.01047559]
[1768663735827,0.01047515,95464.0,95460.0,0.01047559]
[1768663736033,0.01047526,95463.0,95460.0,0.01047559]
[1768663736579,0.01047515,95464.0,95460.0,0.01047559]
[1768663737605,0.13739504,95465.0,95460.0,0.01047559]
[1768663737801,0.13739504,95465.0,95461.0,0.01047548]
[1768663740329,0.01047383,95476.0,95466.0,0.01047493]
[1768663740527,0.01047438,95471.0,95466.0,0.01047493]
[1768663740730,0.01047471,95468.0,95465.0,0.01]
[1768663741076,0.0104746,95469.0,95465.0,0.01047504]
[1768663741392,0.0104746,95469.0,95466.0,0.01047493]
[1768663741615,0.01047405,95474.0,95467.0,0.01047482]
[1768663741830,0.05237146,95472.0,95467.0,0.01047482]
[1768663741976,0.01047438,95471.0,95468.0,0.01047471]
[1768663742181,0.06283918,95482.0,95471.0,1.07970268]
[1768663742383,0.06283918,95482.0,95476.0,1e-08]
[1768663742384,0.0104735,95479.0,95476.0,1e-08]
[1768663742551,0.12692,95482.0,95478.0,0.04917405]
[1768663742748,0.01047306,95483.0,95478.0,0.05236759]
[1768663742972,0.01047317,95482.0,95479.0,0.0104735]
[1768663743168,0.01047317,95482.0,95477.0,0.06284186]
[1768663743369,0.01047328,95481.0,95477.0,0.01047372]
[1768663743975,0.01047339,95480.0,95476.0,0.01047384]
[1768663744374,0.01047328,95481.0,95476.0,0.01047384]
[1768663744575,0.01047339,95480.0,95476.0,0.01047384]
[1768663745615,0.0104735,95479.0,95476.0,0.01047384]
[1768663746235,0.01047339,95480.0,95477.0,0.01047372]
[1768663747169,0.0628406,95480.0,95476.0,0.01047384]
[1768663747374,0.01047339,95480.0,95476.0,0.01047384]
[1768663747572,0.0104735,95479.0,95476.0,1e-08]
[1768663747908,0.05236863,95477.0,95476.0,1e-08]
[1768663750779,0.06284136,95479.0,95476.0,1e-08]
[1768663750976,0.05236808,95478.0,95476.0,1e-08]
[1768663751984,0.0523681,95478.0,95476.0,1e-08]
[1768663752553,0.0104735,95479.0,95476.0,1e-08]
[1768663753135,0.05236851,95478.0,95476.0,1e-08]
[1768663757295,0.0104735,95479.0,95476.0,1e-08]
[1768663757480,0.01047328,95481.0,95476.0,1e-08]
[1768663757678,0.06283974,95481.0,95476.0,0.05236911]
[1768663757933,0.01047317,95482.0,95478.0,0.01047361]
[1768663758131,0.0628391,95482.0,95478.0,0.01047361]
[1768663759052,0.01047328,95481.0,95478.0,0.01047361]
[1768663759270,0.06283985,95481.0,95478.0,0.01047361]
[1768663759462,0.0104735,95479.0,95476.0,1e-08]
[1768663767394,0.0330475,95479.0,95476.0,1e-08]
[1768663768084,0.08541511,95479.0,95476.0,1e-08]
[1768663768289,0.022574,95478.0,95476.0,1e-08]
[1768663768495,0.08541511,95479.0,95476.0,1e-08]
[1768663769501,0.022574,95478.0,95476.0,1e-08]
[1768663770455,0.022574,95477.0,95476.0,1e-08]
[1768663779986,0.07494263,95477.0,95476.0,1e-08]
[1768663782390,0.022574,95477.0,95476.0,1e-08]
[1768663783297,0.07494263,95477.0,95476.0,1e-08]
[1768663792814,0.01047427,95472.0,95465.0,0.05237495]
[1768663793013,0.01047427,95472.0,95467.0,0.05237394]
[1768663793202,0.06284606,95472.0,95467.0,0.05237394]
[1768663793777,0.01047449,95470.0,95467.0,0.01047482]
[1768663794635,0.01047449,95470.0,95465.0,0.01047504]
[1768663794771,0.01047449,95470.0,95465.0,1.14144073]
[1768663794958,0.01047438,95471.0,95467.0,0.06284847]
[1768663795174,0.0628466,95471.0,95467.0,0.01047482]
[1768663796092,0.01047449,95470.0,95466.0,0.05237451]
[1768663796294,0.06284698,95470.0,95465.0,1.14144075]
[1768663796609,0.01047471,95468.0,95465.0,1.08906604]
[1768663798149,0.01047449,95470.0,95466.0,0.06284923]
[1768663798366,0.01047438,95471.0,95466.0,0.01047493]
[1768663798712,0.01047438,95471.0,95466.0,0.06284909]
[1768663799363,0.01047438,95471.0,95468.0,0.01047471]
[1768663799682,0.00969828,95471.0,95468.0,0.01047471]
[1768663799856,0.01047449,95470.0,95467.0,0.01047482]
[1768663800254,0.01047449,95470.0,95466.0,0.01047493]
[1768663800420,0.01047449,95470.0,95467.0,0.01047482]
[1768663801043,0.0104746,95469.0,95466.0,0.01047493]
[1768663801465,0.0628477,95469.0,95466.0,0.01047493]
[1768663801744,0.0628477,95469.0,95465.0,1.08906604]
[1768663801745,0.0104746,95469.0,95465.0,1.08906604]
[1768663802476,0.01047471,95468.0,95465.0,1.078591]
[1768663802649,0.01047471,95468.0,95465.0,1.08906604]
[1768663802850,0.01047471,95468.0,95465.0,1.078591]
[1768663803181,0.0523796,95457.0,95456.0,1e-08]
[1768663803749,0.05237915,95458.0,95456.0,1e-08]
[1768663803959,0.05237379,95468.0,95462.0,0.01047537]
[1768663804158,0.03309703,95467.0,95464.0,0.01047515]
[1768663804532,0.01047449,95470.0,95467.0,0.01040561]
[1768663804716,0.01047405,95474.0,95470.0,0.01047449]
[1768663804914,0.01047427,95472.0,95467.0,0.01040561]
[1768663805074,0.02261741,95471.0,95469.0,0.0104746]
[1768663805417,0.0330919,95470.0,95465.0,0.01047504]
[1768663805564,0.02261741,95469.0,95464.0,0.01047515]
[1768663805762,0.03309212,95468.0,95464.0,0.01047515]
[1768663806016,0.01047471,95468.0,95464.0,0.01047515]
[1768663806218,0.01047427,95472.0,95466.0,0.01047493]
[1768663806421,0.02261369,95471.0,95466.0,0.01047493]
[1768663806562,0.02261369,95470.0,95469.0,0.05237302]
[1768663806762,0.01047372,95477.0,95474.0,0.01038367]
[1768663806962,0.01047383,95476.0,95472.0,0.01047427]
[1768663807169,0.01047383,95476.0,95472.0,0.0628451]
[1768663807881,0.01047427,95472.0,95468.0,0.05237344]
[1768663808869,0.01047427,95472.0,95468.0,0.06284827]
[1768663809517,0.01047438,95471.0,95467.0,0.01047482]
[1768663809719,0.01047493,95466.0,95460.0,1.14144443]
[1768663809924,0.01047449,95470.0,95465.0,0.01047504]
[1768663810363,0.06284702,95470.0,95465.0,0.06285017]
[1768663810567,0.0523736,95468.0,95464.0,0.01047515]
[1768663810885,0.01047394,95475.0,95470.0,0.01047449]
[1768663811083,0.01047394,95475.0,95472.0,0.01047427]
[1768663811286,0.01047416,95473.0,95468.0,0.01047471]
[1768663811514,0.01047427,95472.0,95469.0,0.0104746]
[1768663811713,0.01047405,95474.0,95470.0,0.01047449]
[1768663811916,0.01047416,95473.0,95470.0,0.01047449]
[1768663812822,0.01047405,95474.0,95471.0,0.01047438]
[1768663814287,0.01047405,95474.0,95469.0,0.0104746]
[1768663814718,0.01047416,95473.0,95470.0,0.01047449]
[1768663815083,0.01047427,95472.0,95469.0,0.0104746]
[1768663815482,0.01047416,95473.0,95470.0,0.01047449]
[1768663815882,0.06284515,95473.0,95469.0,0.0104746]
[1768663816109,0.06284609,95472.0,95468.0,0.01047471]
[1768663816287,0.01047427,95472.0,95468.0,0.01047471]
[1768663816689,0.01047405,95474.0,95469.0,0.0104746]
[1768663817027,0.06284479,95474.0,95469.0,0.0104746]
[1768663817409,0.05237083,95473.0,95469.0,0.0104746]
[1768663817621,0.05236912,95477.0,95471.0,0.0523718]
[1768663817815,0.05236935,95476.0,95471.0,0.0523718]
[1768663818274,0.12692,95478.0,95477.0,0.05236863]
[1768663818599,0.12692,95478.0,95476.0,0.05236891]
[1768663818806,0.02261061,95477.0,95476.0,0.05236918]
[1768663819660,0.02261061,95477.0,95424.0,0.05236512]
[1768663819661,0.12692,95487.0,95482.0,0.01047317]
[1768663819864,0.12692,95487.0,95484.0,0.01047295]
[1768663820231,0.12692,95487.0,95483.0,0.01047306]
[1768663821008,0.12692,95487.0,95484.0,0.01047295]
[1768663821216,0.12692,95487.0,95484.0,0.06283758]
[1768663822203,0.12692,95487.0,95484.0,0.01047295]
[1768663822415,0.01047252,95488.0,95484.0,0.01047295]
[1768663822571,0.01057149,95488.0,95485.0,0.01047284]
[1768663822998,9.897e-05,95488.0,95485.0,0.01047284]
[1768663823981,9.897e-05,95488.0,95485.0,0.0103946]
[1768663824635,9.897e-05,95488.0,95485.0,0.06275834]
[1768663824813,0.05236048,95492.0,95485.0,0.06275834]
[1768663824814,0.02818016,95495.0,95489.0,0.01047241]
[1768663825011,0.01047142,95498.0,95495.0,0.01047175]
[1768663825175,0.01047142,95498.0,95495.0,0.01039351]
[1768663825830,0.01062971,95499.0,95495.0,0.01039351]
[1768663827324,0.01047142,95498.0,95495.0,0.01039351]
[1768663828563,0.01047197,95493.0,95489.0,0.01047241]
[1768663829263,0.01047219,95491.0,95486.0,0.06283634]
[1768663829417,0.01047219,95491.0,95487.0,0.01047262]
[1768663830103,0.0104723,95490.0,95485.0,0.01047284]
[1768663830390,0.01047208,95492.0,95487.0,0.01047262]
[1768663830979,0.01047186,95494.0,95489.0,0.01047241]
[1768663831175,0.01047186,95494.0,95490.0,0.05236126]
[1768663831431,0.01047186,95494.0,95489.0,0.01047241]
[1768663831580,0.01047186,95494.0,95490.0,0.05236146]
[1768663831779,0.01047186,95494.0,95489.0,0.01047241]
[1768663832209,0.0031137,95500.0,95491.0,0.01047219]
[1768663832579,0.05235867,95496.0,95491.0,0.01047219]
[1768663833221,0.01047186,95494.0,95491.0,0.01047219]
[1768663835348,0.01047186,95494.0,95490.0,0.0104723]
[1768663835808,0.0628319,95493.0,95489.0,0.01047241]
[1768663836174,0.01047197,95493.0,95486.0,0.01047273]
[1768663836397,0.01047219,95491.0,95487.0,0.01047262]
[1768663837346,0.06283426,95490.0,95486.0,0.01047273]
[1768663838370,0.01047241,95489.0,95486.0,0.01047273]
[1768663839870,0.0104723,95490.0,95486.0,0.01047273]
[1768663840443,0.01047241,95489.0,95486.0,0.01047273]
[1768663841027,0.01047262,95487.0,95484.0,1.04991473]
[1768663842272,0.01047252,95488.0,95485.0,0.01047284]
[1768663842461,0.01047241,95489.0,95485.0,0.01047284]
[1768663842840,0.05236357,95487.0,95482.0,1.0603879]
[1768663843075,0.01047252,95488.0,95484.0,0.01047295]
[1768663843497,0.01047252,95488.0,95485.0,0.01047284]
[1768663843754,0.01047262,95487.0,95484.0,0.01047295]
[1768663843888,0.01047262,95487.0,95483.0,0.01047306]
[1768663844512,0.0628362,95487.0,95483.0,0.01047306]
[1768663844929,0.01047252,95488.0,95485.0,0.01047284]
[1768663845496,0.01047252,95488.0,95484.0,0.01047295]
[1768663845697,0.01047262,95487.0,95484.0,0.01047295]
[1768663847402,0.01047273,95486.0,95481.0,0.13739328]
[1768663847606,0.00982588,95485.0,95482.0,0.01047317]
[1768663847805,0.00959558,95485.0,95482.0,0.01047317]
[1768663849011,0.01047295,95484.0,95481.0,0.12692]
[1768663849253,0.00638037,95484.0,95481.0,0.12692]
[1768663850037,0.00638037,95484.0,95481.0,0.13739328]
[1768663850457,0.00638037,95484.0,95481.0,0.12688]
[1768663850661,0.05874518,95484.0,95481.0,0.12688]
[1768663850876,0.01047262,95487.0,95484.0,0.01047295]
[1768663852943,0.0104723,95490.0,95485.0,0.01047284]
[1768663853154,0.02260321,95489.0,95487.0,0.01047262]
[1768663853356,0.02260321,95488.0,95487.0,0.01047262]
[1768663854307,0.02260321,95488.0,95486.0,0.01047273]
[1768663854532,0.01047186,95494.0,95489.0,0.01047241]
[1768663854740,0.02261567,95493.0,95489.0,0.01047241]
[1768663854946,0.02261567,95492.0,95489.0,0.01047241]
[1768663855152,0.02261567,95491.0,95489.0,0.01047241]
[1768663855361,0.02261567,95490.0,95489.0,0.01047241]
[1768663855892,0.02261567,95490.0,95489.0,0.06283446]
[1768663858965,0.01047197,95493.0,95490.0,0.0104723]
[1768663860177,0.01047186,95494.0,95491.0,0.01047219]
[1768663860693,0.06283137,95494.0,95490.0,0.0104723]
[1768663861188,0.01047186,95494.0,95490.0,0.0104723]
[1768663861331,0.01047186,95494.0,95491.0,0.01047219]
[1768663861554,0.01047186,95494.0,95490.0,0.0104723]
[1768663861777,0.01047186,95494.0,95491.0,0.01047219]
[1768663862539,0.06282955,95497.0,95493.0,0.01047197]
[1768663863054,0.01047153,95497.0,95493.0,0.01047197]
[1768663863833,0.01047153,95497.0,95493.0,0.06283178]
[1768663864039,0.01047153,95497.0,95493.0,0.01047197]
[1768663864296,0.01047164,95496.0,95493.0,0.01047197]
[1768663864501,0.0177985,95493.0,95491.0,0.06283302]
[1768663864665,0.0177985,95493.0,95492.0,0.0523604]
[1768663870204,0.01047153,95497.0,95491.0,0.01047219]
[1768663870205,0.01047153,95497.0,95493.0,0.06283178]
[1768663870960,0.02261561,95496.0,95493.0,0.06283178]
[1768663871332,0.02261561,95495.0,95494.0,0.01047186]
[1768663872085,0.02261561,95495.0,95493.0,0.01047197]
[1768663872348,0.02261561,95494.0,95493.0,0.01047197]
[1768663874156,0.0104712,95500.0,95495.0,0.01047175]
[1768663874338,0.01047131,95499.0,95496.0,0.01047164]
[1768663874766,0.0104712,95500.0,95497.0,0.01047153]
[1768663875056,0.06282602,95502.0,95497.0,0.06275088]
[1768663875318,0.06282602,95502.0,95497.0,0.0103933]
[1768663875319,0.01047109,95501.0,95497.0,0.0103933]
[1768663875532,0.0104712,95500.0,95496.0,0.01047164]
[1768663875720,0.01047131,95499.0,95496.0,0.01047164]
[1768663876673,0.01047131,95499.0,95496.0,0.06282978]
[1768663876877,0.0104712,95500.0,95496.0,0.06282978]
[1768663877082,0.01047142,95498.0,95495.0,0.06283042]
[1768663877288,0.01047142,95498.0,95495.0,0.01047175]
[1768663877718,0.01047142,95498.0,95495.0,0.01039352]
[1768663878611,0.01047131,95499.0,95495.0,0.06275223]
[1768663878818,0.01047131,95499.0,95495.0,0.06267399]
[1768663879019,0.01047131,95499.0,95496.0,0.01047164]
[1768663880360,0.06282825,95499.0,95495.0,0.01031528]
[1768663880989,0.01047131,95499.0,95495.0,0.01031528]
[1768663881194,0.01047142,95498.0,95495.0,0.01031528]
[1768663881843,0.01047131,95499.0,95496.0,0.0628298]
[1768663882043,0.01047131,95499.0,95496.0,0.01047164]
[1768663882249,0.06282799,95499.0,95495.0,0.01031528]
[1768663882449,0.01047131,95499.0,95495.0,0.01031528]
[1768663882654,0.01047164,95496.0,95493.0,0.01047197]
[1768663883267,0.01047186,95494.0,95491.0,0.01047219]
[1768663883398,0.01047175,95495.0,95491.0,0.01047219]
[1768663883772,0.01047186,95494.0,95490.0,0.0104723]
[1768663884366,0.01047186,95494.0,95490.0,0.06283369]
[1768663884704,0.01047197,95493.0,95490.0,0.0104723]
[1768663885044,0.01047186,95494.0,95491.0,0.01047219]
[1768663886130,0.02261483,95493.0,95491.0,0.01047219]
[1768663886466,0.02261483,95492.0,95491.0,0.01047219]
[1768663887238,0.02261483,95492.0,95488.0,0.1897147]
[1768663887239,0.03308691,95492.0,95488.0,0.13735252]
[1768663887423,0.02261483,95491.0,95489.0,0.01047241]
[1768663887628,0.02261483,95490.0,95489.0,0.06283446]
[1768663890070,0.02261483,95490.0,95489.0,0.01047241]
[1768663890274,0.02261483,95490.0,95489.0,0.06283446]
[1768663892662,0.02261563,95494.0,95492.0,0.01047208]
[1768663892872,0.06282924,95497.0,95492.0,0.01047208]
[1768663893087,0.01047153,95497.0,95492.0,0.01047208]
[1768663893474,0.01047153,95497.0,95492.0,0.06283233]
[1768663894264,0.01047164,95496.0,95493.0,0.01047197]
[1768663894431,0.01047241,95489.0,95484.0,1.07754841]
[1768663894632,0.05236349,95487.0,95485.0,0.12688]
[1768663894832,0.01047252,95488.0,95485.0,0.12688]
[1768663895248,0.0628354,95488.0,95485.0,0.12688]
[1768663895415,0.0628354,95488.0,95484.0,0.12688]
[1768663895416,0.01047252,95488.0,95484.0,0.12688]
[1768663895614,0.01047262,95487.0,95484.0,0.12688]
[1768663896115,0.01047262,95487.0,95482.0,0.05236581]
[1768663896116,0.01047284,95485.0,95482.0,0.01047317]
[1768663896525,0.01047262,95487.0,95483.0,0.01047306]
[1768663896725,0.01047262,95487.0,95483.0,0.06283823]
[1768663896932,0.01047252,95488.0,95484.0,0.01047295]
[1768663897208,0.01047241,95489.0,95485.0,0.01047284]
[1768663898139,0.01047241,95489.0,95485.0,0.06283694]
[1768663898714,0.01047241,95489.0,95484.0,0.01047295]
[1768663899144,0.01047241,95489.0,95485.0,0.01047284]
[1768663899339,0.01047241,95489.0,95485.0,0.06283708]
[1768663899582,0.01047241,95489.0,95486.0,0.01047273]
[1768663899778,0.01047262,95487.0,95482.0,0.01047317]
[1768663900000,0.01047273,95486.0,95483.0,0.01047306]
[1768663900295,0.01047262,95487.0,95480.0,0.01047339]
[1768663900296,0.01047284,95485.0,95480.0,0.01047339]
[1768663900525,0.01047273,95486.0,95482.0,0.01047317]
[1768663900686,0.0628372,95485.0,95481.0,0.01047328]
[1768663900861,0.01047284,95485.0,95481.0,0.01047328]
[1768663901938,0.01047306,95483.0,95480.0,0.01047339]
[1768663903327,0.01047295,95484.0,95480.0,0.06284035]
[1768663903481,0.01047295,95484.0,95480.0,0.01047339]
[1768663903841,0.01047306,95483.0,95480.0,0.01047339]
[1768663904265,0.01047306,95483.0,95477.0,0.01047372]
[1768663904444,0.01047306,95483.0,95479.0,0.06284101]
[1768663904649,0.01047306,95483.0,95480.0,0.01047339]
[1768663904851,0.01047295,95484.0,95480.0,0.06284032]
[1768663905057,0.01047295,95484.0,95481.0,0.01047328]
[1768663905844,0.01047295,95484.0,95477.0,0.01047372]
[1768663905845,0.01047317,95482.0,95477.0,0.01047372]
[1768663906046,0.01047328,95481.0,95478.0,0.01047361]
[1768663906245,0.01047317,95482.0,95478.0,0.01047361]
[1768663906456,0.01047317,95482.0,95479.0,0.0104735]
[1768663906671,0.01047306,95483.0,95481.0,0.00025126]
[1768663909847,0.01047295,95484.0,95481.0,0.01072454]
[1768663911360,0.01047219,95491.0,95483.0,0.01047306]
[1768663911570,0.02260441,95490.0,95489.0,0.01047241]
[1768663911917,0.02260441,95490.0,95489.0,0.06283446]
[1768663912313,0.02260441,95490.0,95489.0,0.01047241]
[1768663912726,0.02260441,95490.0,95489.0,0.06283446]
[1768663913354,0.01047153,95497.0,95490.0,0.0104723]
[1768663913562,0.06283071,95495.0,95491.0,0.01047219]
[1768663913773,0.01047175,95495.0,95491.0,0.01047219]
[1768663913974,0.06283053,95495.0,95491.0,0.01047219]
[1768663914349,0.05235934,95494.0,95491.0,0.01047219]
[1768663914551,0.01047186,95494.0,95491.0,0.01047219]
[1768663914714,0.01047197,95493.0,95490.0,0.0104723]
[1768663915513,0.01047208,95492.0,95486.0,0.01047273]
[1768663915663,0.01047208,95492.0,95487.0,0.01047262]
[1768663915872,0.06283252,95492.0,95487.0,0.01047262]
[1768663916258,0.0104723,95490.0,95486.0,0.01047273]
[1768663916456,0.01047241,95489.0,95485.0,0.06283676]
[1768663916853,0.01047262,95487.0,95483.0,0.01047306]
[1768663917682,0.01047241,95489.0,95485.0,0.01047284]
[1768663918571,0.0104723,95490.0,95486.0,0.06283638]
[1768663918773,0.0104723,95490.0,95486.0,0.06274601]
[1768663918975,0.0104723,95490.0,95489.0,0.001]
[1768663919391,0.01047208,95492.0,95489.0,0.01147241]
[1768663919790,0.01047295,95484.0,95481.0,0.01072454]
[1768663920045,0.01029494,95484.0,95481.0,0.01072454]
[1768663920344,0.06265979,95484.0,95481.0,0.00025126]
[1768663920553,0.01029494,95484.0,95481.0,0.00025126]
[1768663920749,0.05236589,95482.0,95481.0,0.00025126]
[1768663920995,0.01029494,95484.0,95481.0,0.00025126]
[1768663921171,0.06265983,95484.0,95481.0,0.00025126]
[1768663921780,0.01029494,95484.0,95481.0,0.00025126]
[1768663922243,0.0628384,95483.0,95479.0,0.0104735]
[1768663922381,0.01047306,95483.0,95479.0,0.0104735]
[1768663922597,0.01047273,95486.0,95480.0,0.01047339]
[1768663922598,0.01047284,95485.0,95480.0,0.01047339]
[1768663922814,0.05236479,95484.0,95480.0,0.01047339]
[1768663924489,0.01047306,95483.0,95480.0,0.01047339]
[1768663924838,0.01047328,95481.0,95476.0,0.01047383]
[1768663925046,0.01047317,95482.0,95478.0,0.06284168]
[1768663925364,0.01047317,95482.0,95479.0,0.0104735]
[1768663925586,0.01047306,95483.0,95480.0,0.01047339]
[1768663927696,0.06283715,95485.0,95480.0,0.06284026]
[1768663927817,0.02260774,95484.0,95481.0,0.01047328]
[1768663928032,0.02260774,95483.0,95481.0,0.01047328]
[1768663928288,0.01047262,95487.0,95482.0,0.01047317]
[1768663928517,0.02260811,95486.0,95483.0,0.05236534]
[1768663928716,0.02260811,95485.0,95484.0,0.01047295]
[1768663928931,0.02260811,95485.0,95484.0,0.06283774]
[1768663929134,0.02260811,95485.0,95484.0,0.01047295]
[1768663931345,0.07497239,95485.0,95480.0,0.05236657]
[1768663931549,0.02260811,95484.0,95480.0,0.05236657]
[1768663931758,0.02260811,95483.0,95480.0,0.05236657]
[1768663932003,0.02260811,95482.0,95480.0,0.06283996]
[1768663932242,0.01047284,95485.0,95481.0,0.01047328]
[1768663932455,0.02260966,95484.0,95481.0,0.01047328]
[1768663932665,0.02260966,95483.0,95481.0,0.01047328]
[1768663932876,0.01047252,95488.0,95485.0,0.01047284]
[1768663933079,0.03308228,95487.0,95483.0,0.01047306]
[1768663933268,0.02260966,95486.0,95483.0,0.01047306]
[1768663933419,0.02260966,95485.0,95483.0,0.01047306]
[1768663933618,0.01047219,95491.0,95485.0,0.01047284]
[1768663933818,0.05236191,95490.0,95485.0,0.01047284]
[1768663934441,0.06283319,95491.0,95485.0,0.06283657]
[1768663934646,0.01047219,95491.0,95488.0,0.01047252]
[1768663935443,0.06283319,95491.0,95488.0,0.01047252]
[1768663936116,0.01047219,95491.0,95488.0,0.01047252]
[1768663939138,0.01047219,95491.0,95488.0,0.01038218]
[1768663939838,0.01047208,95492.0,95488.0,0.01038218]
[1768663939979,0.06283248,95492.0,95488.0,0.01038218]
[1768663940186,0.01047208,95492.0,95488.0,0.01038218]
[1768663940605,0.06283259,95492.0,95488.0,0.01038218]
[1768663940807,0.01047208,95492.0,95488.0,0.01038218]
[1768663941013,0.01047197,95493.0,95490.0,0.0104723]
[1768663941433,0.06283067,95495.0,95491.0,0.01047219]
[1768663941634,0.06283067,95495.0,95491.0,0.00643222]
[1768663942043,0.01047175,95495.0,95491.0,0.00643222]
[1768663942879,0.0628312,95494.0,95491.0,0.00643222]
[1768663943074,0.01047197,95493.0,95489.0,0.01047241]
[1768663943339,0.01047197,95493.0,95489.0,0.06283435]
[1768663943658,0.01047208,95492.0,95488.0,0.01038218]
[1768663943795,0.01047219,95491.0,95487.0,0.01047262]
[1768663944529,0.06283353,95491.0,95487.0,0.01047262]
[1768663944780,0.01047219,95491.0,95487.0,0.06283551]
[1768663945294,0.01047208,95492.0,95488.0,0.01047252]
[1768663945434,0.01047197,95493.0,95490.0,0.0104723]
[1768663945635,0.02261313,95492.0,95490.0,0.0104723]
[1768663945857,0.02261313,95491.0,95490.0,0.0104723]
[1768663946789,0.02261313,95491.0,95490.0,0.0628338]
[1768663946991,0.18616866,95498.0,95494.0,0.01047186]
[1768663947349,0.01047153,95497.0,95494.0,0.01030327]
[1768663947583,0.12688,95498.0,95495.0,0.01047175]
[1768663948142,0.13735142,95498.0,95495.0,0.01047175]
[1768663949517,0.18970857,95498.0,95495.0,0.01047175]
[1768663949714,0.13735142,95498.0,95495.0,0.01047175]
[1768663950404,0.12688,95498.0,95495.0,0.06283011]
[1768663950684,0.12688,95498.0,95497.0,0.05235766]
[1768663950921,0.12688,95498.0,95496.0,0.05235809]
[1768663951353,0.12688,95498.0,95497.0,0.05235766]
[1768663951684,0.12688,95498.0,95495.0,0.0628302]
[1768663951685,0.12688,95498.0,95496.0,0.05235809]